[Event "Titled Tuesday Blitz April 18 Late 2023"]
[White "Grigoriants, Sergey"]
[Black "Lizak, Peter"]
[WhiteFideId "4130804"]
[BlackFideId "731595"]
[WhiteElo "2502"]
[BlackElo "2420"]
[Result "1/2-1/2"]
[Round "07"]
[TimeControl "180+2"]
[Date "2023.04.18"]
[WhiteClock "0:00:20"]
[BlackClock "0:00:22"]

1. d4 {[%clk 0:02:55]}  d6 {[%clk 0:02:59]} 2. e4 {[%clk 0:02:54]}  Nf6 {[%clk 0:02:59]} 3. f3 {[%clk 0:02:52]}  e5 {[%clk 0:02:59]} 4. Ne2 {[%clk 0:02:39]}  Nc6 {[%clk 0:02:57]} 5. d5 {[%clk 0:02:37]}  Ne7 {[%clk 0:02:57]} 6. c4 {[%clk 0:02:38]}  Nd7 {[%clk 0:02:56]} 7. Nbc3 {[%clk 0:02:35]}  g6 {[%clk 0:02:56]} 8. Be3 {[%clk 0:02:25]}  f5 {[%clk 0:02:53]} 9. exf5 {[%clk 0:02:22]}  Nxf5 {[%clk 0:02:52]} 10. Bf2 {[%clk 0:02:10]}  Bh6 {[%clk 0:02:52]} 11. Ng3 {[%clk 0:01:58]}  Ne3 {[%clk 0:02:47]} 12. Qe2 {[%clk 0:01:58]}  Nxf1 {[%clk 0:02:39]} 13. Rxf1 {[%clk 0:01:48]}  O-O {[%clk 0:02:39]} 14. Nge4 {[%clk 0:01:38]}  Nf6 {[%clk 0:02:32]} 15. Bh4 {[%clk 0:01:31]}  Bg7 {[%clk 0:02:21]} 16. O-O-O {[%clk 0:01:30]}  Qe8 {[%clk 0:02:16]} 17. g4 {[%clk 0:01:21]}  Bd7 {[%clk 0:02:03]} 18. Kb1 {[%clk 0:01:21]}  a6 {[%clk 0:02:01]} 19. c5 {[%clk 0:01:12]}  Nxe4 {[%clk 0:01:58]} 20. Nxe4 {[%clk 0:01:11]}  Bb5 {[%clk 0:01:57]} 21. Qe3 {[%clk 0:01:06]}  Bxf1 {[%clk 0:01:57]} 22. Rxf1 {[%clk 0:01:07]}  dxc5 {[%clk 0:01:55]} 23. Nxc5 {[%clk 0:01:05]}  Qb5 {[%clk 0:01:53]} 24. Rc1 {[%clk 0:00:55]}  e4 {[%clk 0:01:53]} 25. b3 {[%clk 0:00:45]}  exf3 {[%clk 0:01:43]} 26. Ne6 {[%clk 0:00:43]}  Qe2 {[%clk 0:01:36]} 27. Qxe2 {[%clk 0:00:31]}  fxe2 {[%clk 0:01:36]} 28. Nxf8 {[%clk 0:00:31]}  Rxf8 {[%clk 0:01:29]} 29. Re1 {[%clk 0:00:31]}  Rf1 {[%clk 0:01:26]} 30. Kc2 {[%clk 0:00:31]}  Rxe1 {[%clk 0:00:58]} 31. Bxe1 {[%clk 0:00:30]}  Be5 {[%clk 0:00:57]} 32. h3 {[%clk 0:00:30]}  Kf7 {[%clk 0:00:48]} 33. Kd3 {[%clk 0:00:30]}  Ke7 {[%clk 0:00:45]} 34. Bb4+ {[%clk 0:00:24]}  Bd6 {[%clk 0:00:46]} 35. Bd2 {[%clk 0:00:20]}  Bg3 {[%clk 0:00:40]} 36. Bb4+ {[%clk 0:00:20]}  Bd6 {[%clk 0:00:37]} 37. Bc3 {[%clk 0:00:20]}  Be5 {[%clk 0:00:31]} 38. Bb4+ {[%clk 0:00:20]}  Bd6 {[%clk 0:00:22]} 1/2-1/2


[Site "https://www.chess.com"]

[Event "Titled Tuesday Blitz April 18 Late 2023"]
[White "cryptoguru02"]
[Black "Peng, Li Min"]
[BlackFideId "14112620"]
[WhiteElo "2604"]
[BlackElo "2436"]
[Result "0-1"]
[Round "07"]
[TimeControl "180+2"]
[Date "2023.04.18"]
[WhiteClock "0:00:01"]
[BlackClock "0:00:16"]

1. d4 {[%clk 0:03:00]}  Nf6 {[%clk 0:02:58]} 2. c4 {[%clk 0:03:00]}  e6 {[%clk 0:02:58]} 3. Nc3 {[%clk 0:03:00]}  Bb4 {[%clk 0:02:59]} 4. Qc2 {[%clk 0:03:01]}  b6 {[%clk 0:02:58]} 5. a3 {[%clk 0:02:54]}  Bxc3+ {[%clk 0:02:56]} 6. Qxc3 {[%clk 0:02:55]}  Bb7 {[%clk 0:02:57]} 7. f3 {[%clk 0:02:55]}  d5 {[%clk 0:02:53]} 8. Bg5 {[%clk 0:02:53]}  Nbd7 {[%clk 0:02:50]} 9. e3 {[%clk 0:02:50]}  h6 {[%clk 0:02:48]} 10. Bh4 {[%clk 0:02:50]}  O-O {[%clk 0:02:44]} 11. cxd5 {[%clk 0:02:50]}  exd5 {[%clk 0:02:43]} 12. Bd3 {[%clk 0:02:48]}  Re8 {[%clk 0:02:43]} 13. Ne2 {[%clk 0:02:48]}  Qe7 {[%clk 0:02:06]} 14. Bf2 {[%clk 0:02:46]}  c5 {[%clk 0:02:06]} 15. O-O {[%clk 0:02:45]}  Rac8 {[%clk 0:02:06]} 16. Qd2 {[%clk 0:02:42]}  c4 {[%clk 0:02:03]} 17. Bc2 {[%clk 0:02:42]}  Nf8 {[%clk 0:01:56]} 18. Nc3 {[%clk 0:02:39]}  a6 {[%clk 0:01:55]} 19. Rfe1 {[%clk 0:02:34]}  Rcd8 {[%clk 0:01:46]} 20. h3 {[%clk 0:02:32]}  Ne6 {[%clk 0:01:20]} 21. Rad1 {[%clk 0:02:31]}  b5 {[%clk 0:01:19]} 22. e4 {[%clk 0:02:29]}  dxe4 {[%clk 0:00:54]} 23. fxe4 {[%clk 0:02:30]}  Ng5 {[%clk 0:00:54]} 24. d5 {[%clk 0:02:07]}  Nd7 {[%clk 0:00:41]} 25. Qf4 {[%clk 0:01:25]}  Ne5 {[%clk 0:00:38]} 26. Bb6 {[%clk 0:01:19]}  Rd7 {[%clk 0:00:34]} 27. Bd4 {[%clk 0:01:17]}  f6 {[%clk 0:00:28]} 28. Ne2 {[%clk 0:01:11]}  Rdd8 {[%clk 0:00:23]} 29. Ng3 {[%clk 0:01:07]}  Bc8 {[%clk 0:00:23]} 30. Bb6 {[%clk 0:00:43]}  Bxh3 {[%clk 0:00:23]} 31. Bxd8 {[%clk 0:00:42]}  Rxd8 {[%clk 0:00:24]} 32. Nf5 {[%clk 0:00:30]}  Bxf5 {[%clk 0:00:24]} 33. exf5 {[%clk 0:00:31]}  a5 {[%clk 0:00:25]} 34. Kh1 {[%clk 0:00:14]}  Qd6 {[%clk 0:00:23]} 35. Rd4 {[%clk 0:00:08]}  b4 {[%clk 0:00:23]} 36. axb4 {[%clk 0:00:06]}  Qxb4 {[%clk 0:00:22]} 37. Rxe5 {[%clk 0:00:03]}  fxe5 {[%clk 0:00:20]} 38. Qxe5 {[%clk 0:00:03]}  Qxb2 {[%clk 0:00:21]} 39. Bd1 {[%clk 0:00:01]}  Nf7 {[%clk 0:00:16]} 0-1


[Site "https://www.chess.com"]

[Event "Titled Tuesday Blitz April 18 Late 2023"]
[White "Aggelis, Nikolaos"]
[Black "Thomforde-Toates, Noah"]
[WhiteFideId "4213220"]
[BlackFideId "30951992"]
[WhiteElo "2189"]
[BlackElo "2747"]
[Result "0-1"]
[Round "07"]
[TimeControl "180+2"]
[Date "2023.04.18"]
[WhiteClock "0:00:11"]
[BlackClock "0:00:08"]

1. c4 {[%clk 0:03:00]}  Nf6 {[%clk 0:02:55]} 2. Nc3 {[%clk 0:02:58]}  d6 {[%clk 0:02:55]} 3. g3 {[%clk 0:02:56]}  g6 {[%clk 0:02:55]} 4. b3 {[%clk 0:02:56]}  Bg7 {[%clk 0:02:55]} 5. Bb2 {[%clk 0:02:56]}  O-O {[%clk 0:02:56]} 6. Bg2 {[%clk 0:02:56]}  e5 {[%clk 0:02:54]} 7. d4 {[%clk 0:02:49]}  exd4 {[%clk 0:02:54]} 8. Qxd4 {[%clk 0:02:49]}  Nc6 {[%clk 0:02:54]} 9. Qd2 {[%clk 0:02:49]}  Re8 {[%clk 0:02:54]} 10. Nf3 {[%clk 0:02:49]}  Bf5 {[%clk 0:02:52]} 11. O-O {[%clk 0:02:48]}  Ne4 {[%clk 0:02:52]} 12. Nxe4 {[%clk 0:02:48]}  Bxe4 {[%clk 0:02:52]} 13. Bxg7 {[%clk 0:02:47]}  Kxg7 {[%clk 0:02:53]} 14. Nd4 {[%clk 0:02:45]}  Nxd4 {[%clk 0:02:39]} 15. Qxd4+ {[%clk 0:02:42]}  Qf6 {[%clk 0:02:38]} 16. Qd2 {[%clk 0:02:32]}  Bxg2 {[%clk 0:02:37]} 17. Kxg2 {[%clk 0:02:33]}  h5 {[%clk 0:02:33]} 18. h4 {[%clk 0:02:29]}  Qe6 {[%clk 0:02:30]} 19. Rfe1 {[%clk 0:02:22]}  Qe4+ {[%clk 0:02:29]} 20. Kg1 {[%clk 0:02:21]}  Rad8 {[%clk 0:02:26]} 21. Rad1 {[%clk 0:02:22]}  Qf5 {[%clk 0:02:15]} 22. Qd4+ {[%clk 0:02:19]}  Kg8 {[%clk 0:02:13]} 23. Qxa7 {[%clk 0:02:07]}  Ra8 {[%clk 0:01:58]} 24. Qxb7 {[%clk 0:02:07]}  Rxa2 {[%clk 0:01:58]} 25. Qf3 {[%clk 0:01:17]}  Qc2 {[%clk 0:01:44]} 26. Kf1 {[%clk 0:00:59]}  Rb2 {[%clk 0:01:37]} 27. Rd3 {[%clk 0:00:58]}  Re5 {[%clk 0:01:32]} 28. Re3 {[%clk 0:00:53]}  Rf5 {[%clk 0:01:30]} 29. Qa8+ {[%clk 0:00:48]}  Kg7 {[%clk 0:01:29]} 30. Re8 {[%clk 0:00:47]}  Qxb3 {[%clk 0:00:57]} 31. Rg8+ {[%clk 0:00:44]}  Kf6 {[%clk 0:00:57]} 32. Qd8+ {[%clk 0:00:42]}  Ke5 {[%clk 0:00:55]} 33. Re8+ {[%clk 0:00:38]}  Kd4 {[%clk 0:00:53]} 34. Qxc7 {[%clk 0:00:36]}  Qb4 {[%clk 0:00:23]} 35. Qa7+ {[%clk 0:00:25]}  Qc5 {[%clk 0:00:18]} 36. Qa1 {[%clk 0:00:24]}  Kc3 {[%clk 0:00:09]} 37. Re3+ {[%clk 0:00:20]}  Qxe3 {[%clk 0:00:08]} 38. Rc1+ {[%clk 0:00:11]}  Kb3 {[%clk 0:00:08]} 0-1


[Site "https://www.chess.com"]

[Event "Titled Tuesday Blitz April 18 Late 2023"]
[White "Bazeev, German"]
[Black "koncheto"]
[WhiteFideId "24119350"]
[WhiteElo "2466"]
[BlackElo "2528"]
[Result "1-0"]
[Round "07"]
[TimeControl "180+2"]
[Date "2023.04.18"]
[WhiteClock "0:01:29"]
[BlackClock "0:00:02"]

1. c4 {[%clk 0:02:51]}  Nf6 {[%clk 0:02:51]} 2. Nc3 {[%clk 0:02:51]}  e6 {[%clk 0:02:51]} 3. e4 {[%clk 0:02:48]}  d5 {[%clk 0:02:52]} 4. cxd5 {[%clk 0:02:47]}  exd5 {[%clk 0:02:52]} 5. e5 {[%clk 0:02:48]}  d4 {[%clk 0:02:52]} 6. exf6 {[%clk 0:02:48]}  dxc3 {[%clk 0:02:52]} 7. fxg7 {[%clk 0:02:48]}  cxd2+ {[%clk 0:02:47]} 8. Bxd2 {[%clk 0:02:49]}  Bxg7 {[%clk 0:02:47]} 9. Bc4 {[%clk 0:02:50]}  O-O {[%clk 0:02:37]} 10. Ne2 {[%clk 0:02:48]}  Nc6 {[%clk 0:02:31]} 11. O-O {[%clk 0:02:48]}  Bxb2 {[%clk 0:02:29]} 12. Rb1 {[%clk 0:02:48]}  Bg7 {[%clk 0:02:28]} 13. Qc2 {[%clk 0:02:45]}  Ne5 {[%clk 0:02:19]} 14. Bc3 {[%clk 0:02:34]}  b6 {[%clk 0:01:57]} 15. Bxe5 {[%clk 0:02:31]}  Bxe5 {[%clk 0:01:53]} 16. Qe4 {[%clk 0:02:30]}  Qf6 {[%clk 0:00:54]} 17. Qxa8 {[%clk 0:02:23]}  Bf5 {[%clk 0:00:53]} 18. Qf3 {[%clk 0:02:19]}  Bxb1 {[%clk 0:00:36]} 19. Qxf6 {[%clk 0:02:10]}  Bxf6 {[%clk 0:00:37]} 20. Rxb1 {[%clk 0:02:10]}  Rd8 {[%clk 0:00:36]} 21. Kf1 {[%clk 0:01:59]}  c6 {[%clk 0:00:33]} 22. Bb3 {[%clk 0:01:59]}  Rc8 {[%clk 0:00:24]} 23. Rd1 {[%clk 0:01:58]}  c5 {[%clk 0:00:25]} 24. Bc4 {[%clk 0:01:58]}  Rc7 {[%clk 0:00:18]} 25. g4 {[%clk 0:01:50]}  Re7 {[%clk 0:00:16]} 26. f3 {[%clk 0:01:45]}  Rb7 {[%clk 0:00:13]} 27. a4 {[%clk 0:01:44]}  Re7 {[%clk 0:00:09]} 28. Rd5 {[%clk 0:01:39]}  h6 {[%clk 0:00:05]} 29. Rf5 {[%clk 0:01:37]}  Kg7 {[%clk 0:00:06]} 30. Ng3 {[%clk 0:01:38]}  Bg5 {[%clk 0:00:06]} 31. Nh5+ {[%clk 0:01:37]}  Kg6 {[%clk 0:00:03]} 32. f4 {[%clk 0:01:37]}  Bh4 {[%clk 0:00:03]} 33. Bd3 {[%clk 0:01:31]}  Re3 {[%clk 0:00:02]} 34. Rf6# {[%clk 0:01:29]} 1-0


[Site "https://www.chess.com"]

[Event "Titled Tuesday Blitz April 18 Late 2023"]
[White "Spata, German"]
[Black "Lenaerts, Lennert"]
[WhiteFideId "113026"]
[BlackFideId "211435"]
[WhiteElo "2238"]
[BlackElo "2334"]
[Result "0-1"]
[Round "07"]
[TimeControl "180+2"]
[Date "2023.04.18"]
[WhiteClock "0:00:01"]
[BlackClock "0:00:20"]

1. e4 {[%clk 0:02:55]}  e5 {[%clk 0:02:49]} 2. Nc3 {[%clk 0:02:54]}  Nf6 {[%clk 0:02:48]} 3. d4 {[%clk 0:02:54]}  exd4 {[%clk 0:02:45]} 4. Qxd4 {[%clk 0:02:54]}  Nc6 {[%clk 0:02:45]} 5. Qd3 {[%clk 0:02:55]}  Bb4 {[%clk 0:02:42]} 6. Bg5 {[%clk 0:02:54]}  h6 {[%clk 0:02:41]} 7. Bh4 {[%clk 0:02:53]}  Ne5 {[%clk 0:02:34]} 8. Qd4 {[%clk 0:02:49]}  Qe7 {[%clk 0:02:34]} 9. Ne2 {[%clk 0:02:40]}  Bc5 {[%clk 0:02:25]} 10. Qa4 {[%clk 0:02:18]}  Ng6 {[%clk 0:02:25]} 11. Nd5 {[%clk 0:02:09]}  Qd6 {[%clk 0:02:15]} 12. Bg3 {[%clk 0:02:05]}  Ne5 {[%clk 0:02:12]} 13. f4 {[%clk 0:01:55]}  Nc6 {[%clk 0:02:07]} 14. Nxf6+ {[%clk 0:01:37]}  Qxf6 {[%clk 0:02:08]} 15. O-O-O {[%clk 0:01:35]}  O-O {[%clk 0:02:02]} 16. e5 {[%clk 0:01:35]}  Qf5 {[%clk 0:01:39]} 17. Nc3 {[%clk 0:01:35]}  d6 {[%clk 0:01:38]} 18. Bd3 {[%clk 0:01:32]}  Qg4 {[%clk 0:01:36]} 19. exd6 {[%clk 0:01:16]}  Bxd6 {[%clk 0:01:34]} 20. Kb1 {[%clk 0:01:15]}  Bf5 {[%clk 0:01:30]} 21. Nb5 {[%clk 0:01:12]}  Rad8 {[%clk 0:01:19]} 22. Bxf5 {[%clk 0:01:01]}  Qxf5 {[%clk 0:01:20]} 23. Nxd6 {[%clk 0:01:01]}  Rxd6 {[%clk 0:01:20]} 24. Rxd6 {[%clk 0:01:01]}  cxd6 {[%clk 0:01:21]} 25. Rd1 {[%clk 0:00:59]}  d5 {[%clk 0:01:21]} 26. Qb5 {[%clk 0:00:57]}  Rd8 {[%clk 0:01:12]} 27. Qxb7 {[%clk 0:00:57]}  Qf6 {[%clk 0:01:06]} 28. f5 {[%clk 0:00:40]}  Nd4 {[%clk 0:00:57]} 29. Qc7 {[%clk 0:00:26]}  Nxf5 {[%clk 0:00:52]} 30. Be5 {[%clk 0:00:25]}  Qg5 {[%clk 0:00:47]} 31. g3 {[%clk 0:00:18]}  Re8 {[%clk 0:00:45]} 32. Bf4 {[%clk 0:00:16]}  Qg4 {[%clk 0:00:44]} 33. Rc1 {[%clk 0:00:15]}  Nd4 {[%clk 0:00:28]} 34. Qxa7 {[%clk 0:00:12]}  Ne2 {[%clk 0:00:28]} 35. Re1 {[%clk 0:00:12]}  Nc3+ {[%clk 0:00:27]} 36. bxc3 {[%clk 0:00:12]}  Rxe1+ {[%clk 0:00:28]} 37. Kb2 {[%clk 0:00:13]}  Qd1 {[%clk 0:00:26]} 38. Qa8+ {[%clk 0:00:06]}  Kh7 {[%clk 0:00:26]} 39. Qc8 {[%clk 0:00:04]}  Qb1+ {[%clk 0:00:21]} 40. Ka3 {[%clk 0:00:04]}  Re6 {[%clk 0:00:22]} 41. Bc7 {[%clk 0:00:01]}  Qxc2 {[%clk 0:00:20]} 0-1


[Site "https://www.chess.com"]

[Event "Titled Tuesday Blitz April 18 Late 2023"]
[White "Klukin, Kirill"]
[Black "Sliwicki, Damian"]
[WhiteFideId "24199273"]
[BlackFideId "1127128"]
[WhiteElo "2344"]
[BlackElo "2030"]
[Result "1-0"]
[Round "07"]
[TimeControl "180+2"]
[Date "2023.04.18"]
[WhiteClock "0:02:03"]
[BlackClock "0:00:05"]

1. c4 {[%clk 0:03:00]}  c5 {[%clk 0:02:46]} 2. Nc3 {[%clk 0:03:00]}  Nc6 {[%clk 0:02:47]} 3. g3 {[%clk 0:03:00]}  g6 {[%clk 0:02:47]} 4. Bg2 {[%clk 0:03:01]}  Bg7 {[%clk 0:02:48]} 5. a3 {[%clk 0:03:01]}  e5 {[%clk 0:02:47]} 6. Rb1 {[%clk 0:03:02]}  Nge7 {[%clk 0:02:28]} 7. b4 {[%clk 0:03:01]}  cxb4 {[%clk 0:02:29]} 8. axb4 {[%clk 0:03:02]}  O-O {[%clk 0:02:29]} 9. e3 {[%clk 0:02:59]}  f5 {[%clk 0:02:24]} 10. Nge2 {[%clk 0:02:58]}  f4 {[%clk 0:01:56]} 11. exf4 {[%clk 0:02:56]}  exf4 {[%clk 0:01:57]} 12. Nxf4 {[%clk 0:02:55]}  Nd4 {[%clk 0:01:38]} 13. O-O {[%clk 0:02:47]}  Rxf4 {[%clk 0:01:36]} 14. gxf4 {[%clk 0:02:47]}  d6 {[%clk 0:01:30]} 15. d3 {[%clk 0:02:47]}  Nef5 {[%clk 0:00:59]} 16. Ne4 {[%clk 0:02:42]}  Qh4 {[%clk 0:00:55]} 17. Be3 {[%clk 0:02:39]}  Nxe3 {[%clk 0:00:36]} 18. fxe3 {[%clk 0:02:38]}  Bg4 {[%clk 0:00:36]} 19. Qe1 {[%clk 0:02:30]}  Ne2+ {[%clk 0:00:27]} 20. Kh1 {[%clk 0:02:30]}  Qh5 {[%clk 0:00:24]} 21. Ng3 {[%clk 0:02:26]}  Nxg3+ {[%clk 0:00:22]} 22. Qxg3 {[%clk 0:02:27]}  Bf6 {[%clk 0:00:15]} 23. Bf3 {[%clk 0:02:27]}  Bxf3+ {[%clk 0:00:13]} 24. Qxf3 {[%clk 0:02:27]}  Qh4 {[%clk 0:00:10]} 25. Rg1 {[%clk 0:02:28]}  Re8 {[%clk 0:00:10]} 26. Rg3 {[%clk 0:02:25]}  Kh8 {[%clk 0:00:10]} 27. Rbg1 {[%clk 0:02:25]}  Bd8 {[%clk 0:00:08]} 28. Rh3 {[%clk 0:02:14]}  Qe7 {[%clk 0:00:08]} 29. Qg4 {[%clk 0:02:14]}  Qf7 {[%clk 0:00:06]} 30. Qxg6 {[%clk 0:02:04]}  Qc7 {[%clk 0:00:05]} 31. Qxe8# {[%clk 0:02:03]} 1-0


[Site "https://www.chess.com"]

[Event "Titled Tuesday Blitz April 18 Late 2023"]
[White "Kozin, Yuri"]
[Black "Mickiewicz, Piotr"]
[WhiteFideId "4129920"]
[BlackFideId "1114891"]
[WhiteElo "2626"]
[BlackElo "2246"]
[Result "0-1"]
[Round "07"]
[TimeControl "180+2"]
[Date "2023.04.18"]
[WhiteClock "0:00:51"]
[BlackClock "0:00:44"]

1. e4 {[%clk 0:03:00]}  e5 {[%clk 0:02:58]} 2. Nf3 {[%clk 0:03:00]}  Nf6 {[%clk 0:02:59]} 3. Nxe5 {[%clk 0:03:01]}  d6 {[%clk 0:02:58]} 4. Nf3 {[%clk 0:03:01]}  Nxe4 {[%clk 0:02:58]} 5. Nc3 {[%clk 0:03:01]}  Nxc3 {[%clk 0:02:59]} 6. dxc3 {[%clk 0:03:02]}  Be7 {[%clk 0:02:58]} 7. Be3 {[%clk 0:03:02]}  Nc6 {[%clk 0:02:56]} 8. Qd2 {[%clk 0:03:03]}  Be6 {[%clk 0:02:55]} 9. Nd4 {[%clk 0:02:59]}  Nxd4 {[%clk 0:02:51]} 10. Bxd4 {[%clk 0:03:00]}  Bf6 {[%clk 0:02:45]} 11. O-O-O {[%clk 0:02:58]}  O-O {[%clk 0:02:43]} 12. Kb1 {[%clk 0:02:57]}  a5 {[%clk 0:02:36]} 13. h4 {[%clk 0:02:55]}  a4 {[%clk 0:02:34]} 14. a3 {[%clk 0:02:54]}  h5 {[%clk 0:02:24]} 15. Be2 {[%clk 0:02:50]}  Ra5 {[%clk 0:02:24]} 16. f3 {[%clk 0:02:41]}  b6 {[%clk 0:01:24]} 17. g4 {[%clk 0:02:39]}  Bxd4 {[%clk 0:01:23]} 18. Qxd4 {[%clk 0:02:36]}  Rd5 {[%clk 0:01:12]} 19. Qxa4 {[%clk 0:02:31]}  Rxd1+ {[%clk 0:01:11]} 20. Rxd1 {[%clk 0:02:32]}  Qxh4 {[%clk 0:01:10]} 21. Qd4 {[%clk 0:02:19]}  Qh2 {[%clk 0:01:05]} 22. Qe3 {[%clk 0:01:58]}  h4 {[%clk 0:01:03]} 23. f4 {[%clk 0:01:55]}  Bd7 {[%clk 0:01:00]} 24. Bf3 {[%clk 0:01:13]}  Re8 {[%clk 0:01:00]} 25. Qd4 {[%clk 0:01:10]}  Qg3 {[%clk 0:00:52]} 26. Bd5 {[%clk 0:01:06]}  Bxg4 {[%clk 0:00:47]} 27. Rg1 {[%clk 0:01:03]}  Re1+ {[%clk 0:00:47]} 28. Rxe1 {[%clk 0:01:03]}  Qxe1+ {[%clk 0:00:47]} 29. Ka2 {[%clk 0:01:04]}  Be6 {[%clk 0:00:47]} 30. c4 {[%clk 0:00:58]}  h3 {[%clk 0:00:46]} 31. f5 {[%clk 0:00:52]}  Bxd5 {[%clk 0:00:45]} 32. cxd5 {[%clk 0:00:51]}  h2 {[%clk 0:00:44]} 0-1


[Site "https://www.chess.com"]

[Event "Titled Tuesday Blitz April 18 Late 2023"]
[White "Kushko, Dmitriy"]
[Black "Koc, Przemyslaw"]
[WhiteFideId "14162261"]
[BlackFideId "1109081"]
[WhiteElo "2230"]
[BlackElo "2161"]
[Result "1-0"]
[Round "07"]
[TimeControl "180+2"]
[Date "2023.04.18"]
[WhiteClock "0:00:53"]
[BlackClock "0:00:20"]

1. f4 {[%clk 0:03:00]}  f5 {[%clk 0:02:58]} 2. Nf3 {[%clk 0:03:00]}  Nf6 {[%clk 0:02:58]} 3. g3 {[%clk 0:03:01]}  g6 {[%clk 0:02:59]} 4. Bg2 {[%clk 0:03:02]}  Bg7 {[%clk 0:02:59]} 5. d3 {[%clk 0:03:01]}  O-O {[%clk 0:02:58]} 6. Nc3 {[%clk 0:03:00]}  d6 {[%clk 0:02:58]} 7. e4 {[%clk 0:03:00]}  Nc6 {[%clk 0:02:57]} 8. e5 {[%clk 0:02:53]}  dxe5 {[%clk 0:02:56]} 9. fxe5 {[%clk 0:02:53]}  Ng4 {[%clk 0:02:54]} 10. d4 {[%clk 0:02:54]}  e6 {[%clk 0:02:45]} 11. Bf4 {[%clk 0:02:52]}  Nh6 {[%clk 0:02:43]} 12. Qd2 {[%clk 0:02:51]}  Nf7 {[%clk 0:02:43]} 13. h4 {[%clk 0:02:51]}  Nb4 {[%clk 0:02:39]} 14. h5 {[%clk 0:02:48]}  c6 {[%clk 0:02:36]} 15. O-O-O {[%clk 0:02:39]}  Nd5 {[%clk 0:02:34]} 16. Nxd5 {[%clk 0:02:38]}  cxd5 {[%clk 0:02:32]} 17. Rh2 {[%clk 0:02:27]}  Bd7 {[%clk 0:02:22]} 18. Rdh1 {[%clk 0:02:27]}  Rc8 {[%clk 0:02:16]} 19. hxg6 {[%clk 0:02:27]}  hxg6 {[%clk 0:02:16]} 20. Rh7 {[%clk 0:02:27]}  Qc7 {[%clk 0:01:48]} 21. c3 {[%clk 0:02:00]}  Qc4 {[%clk 0:01:47]} 22. Kb1 {[%clk 0:01:56]}  b5 {[%clk 0:01:46]} 23. Nh4 {[%clk 0:01:47]}  g5 {[%clk 0:01:18]} 24. Bxg5 {[%clk 0:01:43]}  Nxg5 {[%clk 0:00:44]} 25. Qxg5 {[%clk 0:01:42]}  Rf7 {[%clk 0:00:43]} 26. Ng6 {[%clk 0:00:57]}  Qd3+ {[%clk 0:00:32]} 27. Ka1 {[%clk 0:00:56]}  f4 {[%clk 0:00:27]} 28. Rh8+ {[%clk 0:00:51]}  Bxh8 {[%clk 0:00:27]} 29. Ne7+ {[%clk 0:00:52]}  Kf8 {[%clk 0:00:20]} 30. Rxh8# {[%clk 0:00:53]} 1-0


[Site "https://www.chess.com"]

[Event "Titled Tuesday Blitz April 18 Late 2023"]
[White "Ashraf, Artin"]
[Black "Storey, Charles H"]
[WhiteFideId "22514805"]
[BlackFideId "406686"]
[WhiteElo "2188"]
[BlackElo "2196"]
[Result "1-0"]
[Round "07"]
[TimeControl "180+2"]
[Date "2023.04.18"]
[WhiteClock "0:02:14"]
[BlackClock "0:01:29"]

1. e4 {[%clk 0:03:00]}  g6 {[%clk 0:02:59]} 2. d4 {[%clk 0:02:59]}  Bg7 {[%clk 0:03:00]} 3. h4 {[%clk 0:03:00]}  d5 {[%clk 0:02:59]} 4. e5 {[%clk 0:02:54]}  c5 {[%clk 0:02:59]} 5. dxc5 {[%clk 0:02:50]}  Bxe5 {[%clk 0:02:52]} 6. Nf3 {[%clk 0:02:50]}  Bg7 {[%clk 0:02:51]} 7. Nc3 {[%clk 0:02:47]}  e6 {[%clk 0:02:50]} 8. h5 {[%clk 0:02:45]}  Qa5 {[%clk 0:02:46]} 9. h6 {[%clk 0:02:44]}  Bxc3+ {[%clk 0:02:42]} 10. bxc3 {[%clk 0:02:44]}  Qxc3+ {[%clk 0:02:42]} 11. Bd2 {[%clk 0:02:43]}  Qxc5 {[%clk 0:02:42]} 12. c4 {[%clk 0:02:38]}  Ne7 {[%clk 0:02:38]} 13. cxd5 {[%clk 0:02:38]}  Nxd5 {[%clk 0:02:36]} 14. Rc1 {[%clk 0:02:37]}  Qxc1 {[%clk 0:02:21]} 15. Qxc1 {[%clk 0:02:37]}  Nc6 {[%clk 0:02:22]} 16. Bb5 {[%clk 0:02:35]}  Bd7 {[%clk 0:02:20]} 17. Qb2 {[%clk 0:02:33]}  O-O-O {[%clk 0:02:20]} 18. O-O {[%clk 0:02:33]}  Nc7 {[%clk 0:02:16]} 19. Be2 {[%clk 0:02:29]}  e5 {[%clk 0:02:01]} 20. Rb1 {[%clk 0:02:27]}  b6 {[%clk 0:02:00]} 21. Rc1 {[%clk 0:02:22]}  Kb7 {[%clk 0:01:56]} 22. Nxe5 {[%clk 0:02:21]}  Nxe5 {[%clk 0:01:29]} 23. Qxe5 {[%clk 0:02:22]}  Bc6 {[%clk 0:01:29]} 24. Bf3 {[%clk 0:02:14]} 1-0


[Site "https://www.chess.com"]

[Event "Titled Tuesday Blitz April 18 Late 2023"]
[White "Kovalevsky, Stanislav"]
[Black "Weetik, Vjacheslav"]
[WhiteFideId "13508598"]
[BlackFideId "4153472"]
[WhiteElo "2174"]
[BlackElo "2469"]
[Result "0-1"]
[Round "07"]
[TimeControl "180+2"]
[Date "2023.04.18"]
[WhiteClock "0:00:13"]
[BlackClock "0:01:06"]

1. e4 {[%clk 0:03:00]}  c6 {[%clk 0:02:56]} 2. c4 {[%clk 0:03:00]}  e5 {[%clk 0:02:56]} 3. Nc3 {[%clk 0:02:59]}  d6 {[%clk 0:02:56]} 4. g3 {[%clk 0:03:00]}  g6 {[%clk 0:02:55]} 5. Bg2 {[%clk 0:03:00]}  Bg7 {[%clk 0:02:56]} 6. Nge2 {[%clk 0:02:57]}  Nd7 {[%clk 0:02:52]} 7. d3 {[%clk 0:02:58]}  Ne7 {[%clk 0:02:47]} 8. h4 {[%clk 0:02:58]}  h6 {[%clk 0:02:47]} 9. Be3 {[%clk 0:02:51]}  c5 {[%clk 0:02:40]} 10. Qd2 {[%clk 0:02:50]}  Nb8 {[%clk 0:02:38]} 11. f4 {[%clk 0:02:42]}  Nbc6 {[%clk 0:02:37]} 12. O-O-O {[%clk 0:02:33]}  Bg4 {[%clk 0:02:37]} 13. Rdf1 {[%clk 0:02:32]}  Nd4 {[%clk 0:02:35]} 14. fxe5 {[%clk 0:02:26]}  dxe5 {[%clk 0:02:31]} 15. Bxd4 {[%clk 0:02:09]}  cxd4 {[%clk 0:02:28]} 16. Nd5 {[%clk 0:02:09]}  Nxd5 {[%clk 0:02:28]} 17. exd5 {[%clk 0:02:09]}  b5 {[%clk 0:02:22]} 18. c5 {[%clk 0:01:31]}  O-O {[%clk 0:02:20]} 19. Kb1 {[%clk 0:01:26]}  Rc8 {[%clk 0:02:13]} 20. Rc1 {[%clk 0:01:20]}  Kh7 {[%clk 0:01:56]} 21. Rc2 {[%clk 0:01:20]}  f5 {[%clk 0:01:55]} 22. Nc1 {[%clk 0:01:14]}  h5 {[%clk 0:01:55]} 23. Qb4 {[%clk 0:01:08]}  a6 {[%clk 0:01:55]} 24. c6 {[%clk 0:01:05]}  Rf6 {[%clk 0:01:54]} 25. Re1 {[%clk 0:00:55]}  Bf8 {[%clk 0:01:54]} 26. Qb3 {[%clk 0:00:51]}  Bd6 {[%clk 0:01:53]} 27. a4 {[%clk 0:00:44]}  b4 {[%clk 0:01:48]} 28. Qc4 {[%clk 0:00:40]}  a5 {[%clk 0:01:46]} 29. Nb3 {[%clk 0:00:40]}  Rf7 {[%clk 0:01:36]} 30. Qb5 {[%clk 0:00:26]}  e4 {[%clk 0:01:30]} 31. dxe4 {[%clk 0:00:20]}  Bxg3 {[%clk 0:01:29]} 32. Rf1 {[%clk 0:00:16]}  Qxh4 {[%clk 0:01:12]} 33. exf5 {[%clk 0:00:15]}  Bxf5 {[%clk 0:01:12]} 34. d6 {[%clk 0:00:13]}  Bxc2+ {[%clk 0:01:11]} 35. Kxc2 {[%clk 0:00:13]}  Rxf1 {[%clk 0:01:11]} 36. Qxf1 {[%clk 0:00:14]}  Bxd6 {[%clk 0:01:10]} 37. Qf7+ {[%clk 0:00:14]}  Kh6 {[%clk 0:01:11]} 38. Be4 {[%clk 0:00:13]}  Qxe4+ {[%clk 0:01:11]} 39. Kd1 {[%clk 0:00:13]}  Rf8 {[%clk 0:01:06]} 0-1


[Site "https://www.chess.com"]